Cogmind - Beta 15 @@@ ROGUE MODE // 2025.06.23 @ 18:55:01 Player: Elxavo Result: Destroyed by as-48913 with Assembled Blade Performance ------------- Evolutions (1) 500 Regions Visited (3) 600 Robots Destroyed (70) 350 Value Destroyed (1751) 1751 Prototype IDs (8) 160 Alien Tech Used (0) 0 Bonus (0) 0 TOTAL SCORE: 3361 Bonus ------- None Cogmind --------- Core Integrity 0/400 Matter 227/300 Energy 99/100 System Corruption 3% Temperature Cool (0) Movement Treading (170) Location -9/Mines Parts ------- > --- POWER (1) -------- (None) > --- PROPULSION (4) --- Armored Treads Armored Treads > --- UTILITY (2) ------ Medium Storage Unit Core Shielding > --- WEAPON (2) ------- Heavy Assault Rifle > --- INVENTORY (10) --- Aluminum Leg Aluminum Leg Improved Terrain Scanner Seismic Detector Seismic Detector Light Armor Plating Mining Laser Peak State ------------ > --- POWER ------------ Improved Ion Engine > --- PROPULSION ------- Cesium-ion Thruster Cesium-ion Thruster Cesium-ion Thruster Cesium-ion Thruster > --- UTILITY ---------- Medium Storage Unit Seismic Detector > --- WEAPON ----------- Particle Cannon Light Assault Rifle > --- INVENTORY -------- Armored Treads Armored Treads Armored Treads Improved Terrain Scanner Seismic Detector Core Shielding Rocket Launcher Mining Laser Katana [Rating: 21] Favorites ----------- Power Improved Ion Engine Engine Improved Ion Engine Propulsion Aluminum Leg Treads Armored Treads Leg Aluminum Leg Flight Unit Cesium-ion Thruster Utility Medium Storage Unit Device Seismic Detector Storage Medium Storage Unit Protection Core Shielding Weapon Light Assault Rifle Energy Gun Medium Laser Energy Cannon Particle Cannon Ballistic Gun Light Assault Rifle Ballistic Cannon Improved Light Cannon Launcher Rocket Launcher Special Weapon Mining Laser Slashing Weapon Katana Build | -11 -10 -9 -9 ------- Run | Yrd Mat Mat Min Slots Evolved 2 | . . 2 . Power . | . . . . Propulsion 2 | . . 2 . Utility . | . . . . Weapon . | . . . . Parts Attached 49 | 9 13 24 3 Power 5 | 1 2 2 . Engine 5 | 1 2 2 . Core . | . . . . Reactor . | . . . . Propulsion 21 | 2 6 13 . Treads 4 | . . 4 . Leg 13 | 2 6 5 . Wheel . | . . . . Hover . | . . . . Flight 4 | . . 4 . Utility 8 | 3 2 3 . Device 3 | 2 . 1 . Storage 2 | 1 1 . . Processor . | . . . . Hackware . | . . . . Protection 3 | . 1 2 . Artifact . | . . . . Weapon 15 | 3 3 6 3 Energy Gun 2 | 2 . . . Energy Cannon 1 | . . 1 . Ballistic Gun 8 | 1 3 3 1 Ballistic Cannon 1 | . . 1 . Launcher 1 | . . . 1 Special Weapon 1 | . . 1 . Impact Weapon . | . . . . Slashing Weapon 1 | . . . 1 Piercing Weapon . | . . . . Special Melee Weapon . | . . . . Unidentified Prototypes . | . . . . Parts Lost 24 | . 4 13 7 Power 3 | . 1 1 1 Propulsion 9 | . . 7 2 Utility 2 | . . 2 . Weapon 10 | . 3 3 4 Highest Loss Streak 7 | . 3 5 7 To Critical Strikes . | . . . . Average Backups 9 | 4 9 9 9 Power 1 | 1 1 . . Propulsion 1 | 1 1 . 2 Utility 2 | . 2 3 4 Weapon 3 | 1 4 3 3 Tool/Special . | . . . . Unused Backups 12 | . 4 4 4 Power 2 | . 2 . . Propulsion 4 | . 2 . 2 Utility 3 | . . 1 2 Weapon 3 | . . 3 . Tool/Special . | . . . . Average Slot Usage (%) 96 | . 99 93 99 Engine 12 | . 13 10 10 Treads 15 | . . 20 44 Leg 19 | . 28 17 . Device 7 | . 12 3 . Storage 12 | . 14 10 11 Protection 4 | . . 6 11 Energy Gun 4 | . 10 . . Energy Cannon 1 | . . 3 . Ballistic Gun 16 | . 16 15 21 Ballistic Cannon 1 | . . 2 . Peak Build Rating 21 | 9 9 21 21 Average Rating 12 | 6 8 15 20 On Entrance 9 | . 8 9 21 Naked Turns . | . . . . Heaviest Build 27 | 13 22 27 24 Greatest Support 80 | 20 20 80 80 Greatest Overweight (x) 4 | . 1 4 . Average Overweight (x) . | . . . . Largest Inventory Capacity 10 | 8 10 10 10 Average Capacity 9 | 7 9 9 10 Most Carried 10 | 8 10 10 10 Average Carried 9 | 4 9 9 9 Final Capacity 10 | 8 10 10 10 Final Carried 10 | 8 10 10 7 Class Distribution -------------------- 71% | Mutant 28% | Scavenger-Mutant Dominant Class ---------------- Mutant | -10/Materials Mutant | -9/Materials Mutant | -9/Mines Resources | -11 -10 -9 -9 ----------- Run | Yrd Mat Mat Min Matter Collected 1562 | 398 367 729 68 Remotely . | . . . . Salvage Created 2299 | 214 735 1225 125 Parts 133 | 21 34 72 6 Haulers Intercepted . | . . . . Recyclers Shooed 5 | 2 1 2 . Parts Field Recycled . | . . . . Retrieved Matter . | . . . . Parts Self-Destructed . | . . . . Prevented . | . . . . Kills | -11 -10 -9 -9 ------- Run | Yrd Mat Mat Min Combat Hostiles Destroyed 64 | . 18 32 14 Guns 48 | . 18 22 8 Cannons 10 | . . 10 . AOE 6 | . . . 6 Classes Destroyed 8 | 2 3 2 1 Tunneler 7 | 7 . . . Recycler 4 | 1 1 2 . Watcher 5 | . 2 3 . Swarmer 16 | . 6 6 4 Grunt 33 | . 12 21 . Duelist 1 | . . 1 . Sentry 4 | . . 4 . Assembled 10 | . . . 10 Best Kill Streak 8 | 3 3 5 8 Combat Bots Only 8 | . 3 5 8 Max Kills in Single Turn 5 | 1 1 1 5 Gunslinging . | . . . . Exploded 5 | . . . 5 Melee . | . . . . Uniques/NPCs Destroyed . | . . . . Combat | -11 -10 -9 -9 -------- Run | Yrd Mat Mat Min Hostile Shots Fired 443 | . 130 205 108 Missed 129 | . 42 57 30 Hits 314 | . 88 148 78 Melee 22 | . . 9 13 Projectile 292 | . 88 139 65 AOE 11 | . . . 11 Critical Strikes 3 | . . 2 1 Damage Taken 4279 | . 864 1811 1604 Core 510 | . 105 202 203 Absorbed by Shields . | . . . . Redirected to Shielding 44 | . . 3 41 Regen/Repaired (Parts) 156 | . 35 121 . Core Remaining (%) 79 | 100 58 . . Volleys Fired 293 | 36 86 145 26 Largest 2 | 2 2 2 2 Hottest 100 | 70 70 100 46 Shots Fired 545 | 68 167 270 40 Gun 475 | 68 167 202 38 Cannon 67 | . . 67 . Launcher 2 | . . . 2 Special 1 | . . 1 . Kinetic 429 | 36 104 251 38 Thermal 112 | 30 63 19 . Explosive 2 | . . . 2 Electromagnetic 2 | 2 . . . Robot Hit Streak 12 | 7 8 12 4 Robot Miss Streak 7 | 4 5 7 3 Penetration Max . | . . . . Secondary Targets 5 | . 2 2 1 Max Gunslinging Chain 1 | . 1 1 1 Shots Hit Robots 327 | 34 90 180 23 Core Hits 137 | 9 39 69 20 Critical Kills 1 | . . 1 . Critical Parts Destroyed 1 | . . 1 . Critical Strikes 9 | . 5 4 . Burn 5 | . 5 . . Destroy 2 | . . 2 . Blast 2 | . . 2 . Melee Attacks . | . . . . Impact . | . . . . Slashing . | . . . . Piercing . | . . . . Sneak Attacks . | . . . . Combat Hostiles . | . . . . Follow-up Attacks . | . . . . Damage Inflicted 4398 | 441 1076 2213 668 Guns 3176 | 441 1076 1300 359 Cannons 913 | . . 913 . Explosions 309 | . . . 309 Melee . | . . . . Ramming . | . . . . Kinetic 3318 | 252 699 2008 359 Thermal 758 | 176 377 205 . Explosive 309 | . . . 309 Electromagnetic 13 | 13 . . . Impact . | . . . . Slashing . | . . . . Piercing . | . . . . Highest Corruption 3 | . 2 . 3 Average Corruption 2 | . 2 . 3 Corruption Purged . | . . . . Corruption Blocked . | . . . . Effects 9 | . 9 . . Message Errors 2 | . 2 . . Matter Fused 3 | . 3 . . Energy Discharges 2 | . 2 . . Data Loss (minor) 1 | . 1 . . Data Loss (major) 1 | . 1 . . Overload Shots . | . . . . Overflow Damage 48 | . . 22 26 Projectiles 22 | . . 22 . Explosions 26 | . . . 26 Melee . | . . . . Knockbacks 6 | . . 6 . Impact . | . . . . Kinetic 6 | . . 6 . Secondary . | . . . . Self-Inflicted Damage 39 | . . . 39 Shots 1 | . . . 1 Rammed . | . . . . Targets Rammed . | . . . . Kicked . | . . . . Crushed . | . . . . Highest Temperature 219 | 36 219 168 16 Average Temperature 32 | 16 42 29 10 Received Heat Transfer 997 | . 270 627 100 Siege Activations . | . . . . Martial Activations . | . . . . Shielding Activations . | . . . . Robots Disrupted . | . . . . Combat Hostiles . | . . . . Robots Corrupted . | . . . . Combat Hostiles . | . . . . Parts Fried . | . . . . Impact Corruptions . | . . . . Robots Melted . | . . . . Combat Hostiles . | . . . . Parts Melted 3 | 1 1 1 . Heat Transferred 2368 | 518 1480 370 . Parts Sabotaged . | . . . . Parts Stolen . | . . . . Parts Stripped . | . . . . Power Chain Reactions . | . . . . Alert | -11 -10 -9 -9 ------- Run | Yrd Mat Mat Min Maximum Alert Level 1 | . . 1 1 Low Security (%) 69 | 100 100 23 99 Level 1 30 | . . 76 . Level 2 . | . . . . Level 3 . | . . . . Level 4 . | . . . . Level 5 . | . . . . High Security . | . . . . Max Security . | . . . . Peak Influence 371 | 5 145 371 200 Initial 140 | . . 59 140 Average 121 | . 38 246 71 Influence Increases 1724 | 40 545 1043 96 Destroy 0b10 Robot/C 1080 | . 360 640 80 Destroy 0b10 Robot/NC 80 | 40 15 25 . Destroy Leader 250 | . 94 146 10 Successful Hack 48 | . 14 34 . Disable Machine 75 | . . 75 . Destroy Structure 11 | . 2 3 6 Lose Combat Pursuer 180 | . 60 120 . Influence Decreases 1724 | 40 404 824 456 Entered New Map 302 | . . 82 220 Time Decay 1246 | 40 364 612 230 Lost Part 176 | . 40 130 6 Squads Dispatched 11 | . 5 6 . Investigation 5 | . 2 3 . Extermination . | . . . . Reinforcement 6 | . 3 3 . Assault . | . . . . Garrison . | . . . . Intercept . | . . . . Searches Triggered . | . . . . Construction Impeded . | . . . . Haulers Reinforced . | . . . . Active Scanning Responses . | . . . . Cargo Convoy Interrupts . | . . . . Stealth | -11 -10 -9 -9 --------- Run | Yrd Mat Mat Min Distress Signals 3 | . 1 2 . Communications Jammed . | . . . . Distress Signals . | . . . . Times Spotted 103 | . 32 45 26 Peak Tracking Total 11 | . 4 5 11 Tactical Retreats 8 | . 2 6 . Traps | -11 -10 -9 -9 ------- Run | Yrd Mat Mat Min Traps Triggered 3 | . 2 1 . Indirectly . | . . . . Trap Hack Attempts . | . . . . Triggered . | . . . . Disarmed . | . . . . Reprogrammed . | . . . . Reused . | . . . . Traps Extracted . | . . . . Installed . | . . . . Triggered . | . . . . Machines | -11 -10 -9 -9 ---------- Run | Yrd Mat Mat Min Machines Disabled 5 | . . 5 . Max in Single Turn 1 | . . 1 . Machines Repaired . | . . . . Machines Dismantled . | . . . . Machines Sabotaged . | . . . . Overloaded Fab Kills . | . . . . Hacking | -11 -10 -9 -9 --------- Run | Yrd Mat Mat Min Machines Accessed 17 | . 7 10 . Terminals 10 | . 4 6 . Fabricators . | . . . . Repair Stations 2 | . 1 1 . Recycling Units 3 | . 2 1 . Scanalyzers 2 | . . 2 . Garrison Access . | . . . . Total Hacks 64 | . 25 39 . Successful 37 | . 12 25 . Failed 27 | . 13 14 . Catastrophic 4 | . 2 2 . Database Lockouts . | . . . . Manual 6 | . 5 1 . Terminals 34 | . 11 23 . Fabricators . | . . . . Repair Stations 13 | . 9 4 . Recycling Units 7 | . 5 2 . Scanalyzers 10 | . . 10 . Garrison Access . | . . . . Terminal Hacks 17 | . 4 13 . Prototype ID Bank 5 | . 1 4 . Branch Access Points 1 | . . 1 . Emergency Access Points 1 | . . 1 . Terminal Index 2 | . 1 1 . Locate Traps 4 | . 1 3 . Hauler Manifests 2 | . 1 1 . Zone Layout 2 | . . 2 . Fabricator Hacks . | . . . . Repair Station Hacks 7 | . 5 2 . Scan Component 4 | . 3 1 . Repair 3 | . 2 1 . Recycling Unit Hacks 3 | . 2 1 . Report Inventory 2 | . 1 1 . Retrieve Components 1 | . 1 . . Scanalyzer 9 | . . 9 . Insert Component 4 | . . 4 . Analyze 5 | . . 5 . Garrison Access Hacks . | . . . . Unauthorized Hacks . | . . . . Terminals . | . . . . Fabricators . | . . . . Repair Stations . | . . . . Recycling Units . | . . . . Scanalyzers . | . . . . Garrison Access . | . . . . Data Cores Recovered . | . . . . Used . | . . . . Hacking Detections 16 | . 7 9 . Full Trace Events 5 | . 2 3 . Feedback Events . | . . . . Feedback Blocked . | . . . . Robot Schematics Acquired . | . . . . Robots Built . | . . . . Authchips . | . . . . Time . | . . . . Total Robot Build Rating . | . . . . Part Schematics Acquired 4 | . . 4 . Parts Built . | . . . . Authchips . | . . . . Time . | . . . . Total Part Build Rating . | . . . . Parts Repaired 3 | . 2 1 . Time 78 | . 52 26 . Parts Recycled . | . . . . Recycled Matter . | . . . . Retrieved Matter . | . . . . Retrieved Components 9 | . 9 . . Parts Scanalyzed 4 | . . 4 . Part Schematics Acquired 4 | . . 4 . Parts Damaged . | . . . . Bothacking | -11 -10 -9 -9 ------------ Run | Yrd Mat Mat Min Used RIF Installer . | . . . . Robots Hacked . | . . . . Non-combat . | . . . . Combat . | . . . . Robot Hacks Applied . | . . . . Relay Couplers Released . | . . . . Fabnet Peak Effective % . | . . . . Robots Rewired . | . . . . Allies Hacked . | . . . . Hacks Repelled . | . . . . Allies | -11 -10 -9 -9 -------- Run | Yrd Mat Mat Min Total Allies . | . . . . Largest Group . | . . . . Highest-Rated Group . | . . . . Highest-Rated Ally . | . . . . Total Orders . | . . . . Ally Attacks . | . . . . Total Damage . | . . . . Kills . | . . . . Allies Corrupted . | . . . . Allies Melted . | . . . . Intel | -11 -10 -9 -9 ------- Run | Yrd Mat Mat Min Active Infowar (turns) 2675 | 85 1917 673 . Terrain 72 | 72 . . . Seismic 2603 | 13 1917 673 . Robot Analysis Total . | . . . . Derelict Logs Recovered 1 | . . . 1 Drone Launches . | . . . . Drone Recoveries . | . . . . Exploration | -11 -10 -9 -9 ------------- Run | Yrd Mat Mat Min Turns Passed 5123 | 349 2070 2013 691 Spaces Moved 1976 | 188 587 843 358 Core 18 | 2 . 16 . Treads 702 | . . 344 358 Legs 1249 | 186 587 476 . Wheels . | . . . . Hover . | . . . . Flight 7 | . . 7 . Fastest Speed 29 | 50 120 29 170 Average Speed 151 | 119 158 146 170 Slowest Speed 260 | 120 190 260 170 Overloaded Moves . | . . . . Propulsion Burnouts . | . . . . Robots Hopped . | . . . . Potential Cave-ins . | . . . . Cave-ins Triggered . | . . . . Exploration Rate (%) 61 | 8 96 67 74 Regions Visited 3 Branch Regions 1 Pre-discovered Areas . | . . . . Known Exits Taken 1 | . . 1 . Unknown Exits Taken 2 | 1 1 . . Scrap Searched 3 | . . . 3 Spaces Dug 1 | . . 1 . Terrain Destroyed 12 | . . 4 8 Melee . | . . . . Projectile 4 | . . 4 . AOE 8 | . . . 8 Terrain Rammed . | . . . . Walls Destroyed . | . . . . Machines Disabled . | . . . . Actions | -11 -10 -9 -9 --------- Run | Yrd Mat Mat Min Total 3597 | 241 1574 1382 400 Wait 1196 | . 862 322 12 Move 1973 | 187 586 842 358 Hop . | . . . . Pick Up 45 | 8 12 25 . Fast Attach 16 | 7 1 8 . Attach 20 | 1 4 12 3 Detach 1 | 1 . . . Swap 24 | 1 10 12 1 Drop 29 | . 13 16 . Fire 293 | 36 86 145 26 Melee . | . . . . Ram . | . . . . Kick . | . . . . Crush . | . . . . Escape Stasis . | . . . . Rewire . | . . . . Trap . | . . . . Miscellaneous . | . . . . Route ------- -11/Scrapyard -10/Materials (discovered 4 exits: *Mat x3 / [*Min]) -9/Materials (discovered 3 exits: [*Mat] / *Min x2) -9/Mines (discovered 1 exit: [*Mat]) History --------- Turn | Location | Event 9 | -11/Scrapyard | Discovered new exit (range 15) 350 | -11/Scrapyard | Entered Materials 358 | -10/Materials | Build established: Mutant 469 | -10/Materials | Discovered new exit (range 16) 1776 | -10/Materials | Discovered new exit (range 7) 2003 | -10/Materials | Lost 3 parts (1p2w) 2089 | -10/Materials | Discovered new exit (range 4) 2249 | -10/Materials | Build established: Scavenger-Mutant 2294 | -10/Materials | Repaired Seismic Detector 2321 | -10/Materials | Repaired Mining Laser 2395 | -10/Materials | Discovered new exit (range 16) 2420 | -10/Materials | Entered another Materials area 2420 | -9/Materials | Evolved 2 slots: Propulsion x2 2764 | -9/Materials | Discovered new exit (range 10) 2958 | -9/Materials | Identified exit to Mines 3347 | -9/Materials | Lost 3 parts (2n1u) 3441 | -9/Materials | Lost 5 parts (1p1n1u2w) 3683 | -9/Materials | Build established: Mutant 4256 | -9/Materials | Repaired Med. Storage Unit 4353 | -9/Materials | Core integrity fell below 50% 4433 | -9/Materials | Entered Mines 4449 | -9/Mines | Discovered new exit (range 8) 4606 | -9/Mines | Learned 8 Materials zone layouts 5039 | -9/Mines | Assembled infested the area 5044 | -9/Mines | Assisted by a Guerilla fighting off Assembled 5095 | -9/Mines | Core integrity fell below 20% 5115 | -9/Mines | Destroyed 8 combat bots 5124 | -9/Mines | Destroyed by as-48913 with Assembled Blade Last Messages --------------- 05089_ as-20423 destroyed. 05089_ as-72561 destroyed. 05089_ as-26163 destroyed. [Achievement: Quick And Dirty] 05094_ as-18057 destroyed. 05095_ The unstable cave ceiling collapses. 05097_ Hvy. Assault Rifle destroyed. 05097_ System corrupted by crushing effect (+3). 05097_ as-77260 destroyed. 05098_ The unstable cave ceiling collapses. 05107_ as-69502 destroyed. 05113_ The unstable cave ceiling collapses. 05115_ as-87033 destroyed. 05116_ The unstable cave ceiling collapses. 05119_ as-11568 destroyed. 05121_ Acquired 20 matter. 05122_ Arm. Treads destroyed. 05123_ Acquired 12 matter. 05123_ Katana destroyed. 05124_ Arm. Treads destroyed. Map ----- +----------------------------------------------------+ | ?????????????## ###### """ #??## # | | ?????????????# """ ##???# ### # | | ?????????????# """ ##??## ### # | | ?????######### ######### #### ## # | | ?????# #???????#### ## # | | ?????# #########??????????## # # | | ?????# #???????????????????## | | ?????# #????????????????????## | | ???### #?????????????????????### #### | | ???# #???????????????????????## ##??? | | ???# #?????????????? ?????????# ##???? | | ???#####??????????? ?????????## ### #????? | | ??????????????????# ??????????####?## ##????# | | ??????????????????# #???????????????###????## | | ?????????????????## ##????????????????????# | | ?????????????????? #???????????????????## | | ??????????????????? #??????????????????## | | ???????????????????? ##????????????????## | | ????????????????????? ##???????????????# | | ?????????????????????? ##?????????????## | | ???????????????????#### ##????????????# | | ???????????????????# # ##???????????# # | | ??????????????????## #???#???????## # | | ??????????????????# # ### #????????## ## | | ??????????????????# % % #?????????##?? | | ???????????????##### @ !# ## #????????????? | | ??????????????## %%a %[ ###????###???????? | | ??????????????# aa % # #???? #???????? | | ??????????????# aa ## #????# #???????? | | ????????# ### ##????# #????#### | | ????????? ???### #????# #???## # | | ????????? ??????## # ###### #?### | | ?????????? ?????????# ## ### | | ??????????? ??????????# # ## ## ]% | | ???????????????????????## #####[ % | | ???????????????????????# ####???##% | | ???????????????????????## # #???????#### | | ????????????????????????### #??????????#### | | ?????????????????????????# #?????????????? | | ?????????????????????????# #????????????? | | ?????????????????????????# #????????????? | | ?????????????????????????# ##????????????? | | ?????????????????????????## #####?????????????? | | ??????????????????????????####?????????????????? | | ???????????????????????????????????????????????? | | ???????????????????????????????????????????????? | | ???????????????????????????????????????????????? | | ???????????????????????????????????????????????? | | ???????????????????????????????????????????????? | | ???????????????????????????????????????????????? | +----------------------------------------------------+ Best States ------------- Heat Dissipation 28 Energy Generation 12 Energy Capacity 265 Matter Stores 300 Matter Capacity 300 Sight Range 16 Terrain Scan Range 16 Terrain Scan Density 10 Armor Coverage 150 Core Shielding 20 Evasion (%) 55 Recoil Reduction 4 Item Schematics ----------------- Imp. Ion Engine | -9/Materials | Scanalyzed Hrd. Light Armor Plating | -9/Materials | Scanalyzed Lgt. Armor Plating | -9/Materials | Scanalyzed Rocket Launcher | -9/Materials | Scanalyzed Robot Schematics ------------------ None Fabricated ------------ Nothing Repaired ---------- Seismic Detector | 5% | -10/Materials Mining Laser | 46% | -10/Materials Med. Storage Unit | 51% | -9/Materials Alien Tech Used ----------------- None Achievements -------------- Quick And Dirty Challenges ------------ None Game ------ Seed AntigravCoolantRigger Manual? 0 Play Time 01:06:55 Cumulative 41.3 hours Start 2025.06.22 @ 13:55:19 End 2025.06.23 @ 18:55:01 Sessions 2 Manual Loads 0 Difficulty Rogue Special Mode None Game No. 49 Rogue 49 Adventurer 0 Explorer 0 Win Type - Total 0 Types 0/0/0/0/0/0/0/0/0/0 Lore% 24 Gallery% 19 Achievement% 17 Wizard Run 0 Options --------- Layout 0 ASCII 0 Keyboard 0 Movement Mouse Keybinds 0 Fullscreen 1 Font 18/SmallcapsGlow Map View 76x50 Zoom Use 0% Tactical HUD 1 Map Filters NONE Filters LOW_CONTRAST(13,24,33) Steam 1 RUN: 75d195d5-ef87-4995-9a72-953dccf59f3f